fUST/lending_fUST_20250913
["ID","MTS","AMOUNT","RATE_DAILY","PERIOD"]
[385234328,1757695841453,-1305.703639,0.0002099,2]
[385234329,1757695841462,-1305.703639,0.0002099,2]
[385234330,1757695841471,-1305.703639,0.0002099,2]
[385234331,1757695841481,-1305.703639,0.0002099,2]
[385234332,1757695841490,-152.074427,0.0002099,2]
[385234333,1757695841500,-152.074427,0.0002099,2]
[385234334,1757695841509,-152.074427,0.0002099,2]
[385234335,1757695841519,-152.074427,0.0002099,2]
[385234336,1757695841537,-167.35494,0.0002099,2]
[385234337,1757695841547,-151.0,0.0002099,2]
[385234338,1757695841557,-151.0,0.0002099,2]
[385234339,1757695841566,-151.0,0.0002099,2]
[385234340,1757695841575,-544.635932,0.0002099,2]
[385234341,1757695841585,-544.635932,0.0002099,2]
[385234342,1757695841594,-544.635932,0.0002099,2]
[385234343,1757695841603,-544.635932,0.0002099,2]
[385234344,1757695841612,-151.0,0.0002099,2]
[385234345,1757695841622,-203.616579,0.0002099,2]
[385234346,1757695841631,-151.0,0.0002099,2]
[385234347,1757695841642,-203.616579,0.0002099,2]
[385234348,1757695841651,-151.0,0.0002099,2]
[385234349,1757695841660,-203.616579,0.0002099,2]
[385234350,1757695841669,-152.647895,0.0002099,2]
[385234351,1757695841680,-203.616579,0.0002099,2]
[385234352,1757695841689,-151.0,0.00021149,2]
[385234353,1757695841699,-960.796688,0.00021149,2]
[385234354,1757695841708,-960.796688,0.00021149,2]
[385234355,1757695841717,-960.796688,0.00021149,2]
[385234356,1757695841727,-960.796688,0.00021149,2]
[385234357,1757695841736,-151.0,0.00021149,2]
[385234358,1757695841745,-151.0,0.00021149,2]
[385234359,1757695841755,-151.0,0.00021149,2]
[385234360,1757695841764,-852.69912,0.00021149,2]
[385234361,1757695841773,-852.69912,0.00021149,2]
[385234362,1757695841783,-159.156673,0.00021149,2]
[385234363,1757695841792,-151.0,0.00021149,2]
[385234364,1757695841802,-151.0,0.00021149,2]
[385234365,1757695841811,-151.0,0.00021149,2]
[385234366,1757695841821,-271.50955,0.00021149,2]
[385234367,1757695841830,-271.50955,0.00021149,2]
[385234368,1757695841840,-271.50955,0.00021149,2]
[385234369,1757695841849,-271.50955,0.00021149,2]
[385234370,1757695841859,-151.908738,0.00021149,2]
[385234371,1757695841868,-151.908738,0.00021149,2]
[385234372,1757695841878,-151.908738,0.00021149,2]
[385234373,1757695841888,-506.727001,0.00021149,2]
[385234374,1757695841898,-151.908738,0.00021149,2]
[385234375,1757695841907,-506.727001,0.00021149,2]
[385234376,1757695841917,-506.727001,0.00021149,2]
[385234377,1757695841928,-506.727001,0.00021149,2]
[385234378,1757695841937,-7658.38236839,0.00021149,2]
[385234379,1757695841947,-151.0,0.00021149,2]
[385234380,1757695841956,-151.0,0.00021149,2]
[385234381,1757695841965,-1305.703639,0.00021149,2]
[385234382,1757695841975,-1305.703639,0.00021149,2]
[385234383,1757695841984,-1305.703639,0.00021149,2]
[385234384,1757695841993,-1305.703639,0.00021149,2]
[385234385,1757695842002,-152.074427,0.00021149,2]
[385234386,1757695842012,-152.074427,0.00021149,2]
[385234387,1757695842021,-152.074427,0.00021149,2]
[385234388,1757695842030,-152.074427,0.00021149,2]
[385234389,1757695842039,-151.0,0.00021149,2]
[385234390,1757695842048,-151.0,0.00021149,2]
[385234391,1757695842057,-151.0,0.00021149,2]
[385234392,1757695842067,-544.635932,0.00021149,2]
[385234393,1757695842077,-544.635932,0.00021149,2]
[385234394,1757695842086,-544.635932,0.00021149,2]
[385234395,1757695842096,-544.635932,0.00021149,2]
[385234396,1757695842105,-151.0,0.00021149,2]
[385234397,1757695842115,-203.616579,0.00021149,2]
[385234398,1757695842125,-151.0,0.00021149,2]
[385234399,1757695842135,-203.616579,0.00021149,2]
[385234400,1757695842144,-203.616579,0.00021149,2]
[385234401,1757695842154,-203.616579,0.00021149,2]
[385234402,1757695842163,-151.0,0.00021207,2]
[385234403,1757695842174,-151.0,0.00021207,2]
[385234404,1757695842184,-151.0,0.00021207,2]
[385234405,1757695842194,-151.0,0.00021207,2]
[385234406,1757695842203,-210.391168,0.00021207,2]
[385234407,1757695842213,-151.0,0.00021207,2]
[385234408,1757695842222,-210.391168,0.00021207,2]
[385234409,1757695842231,-210.391168,0.00021207,2]
[385234410,1757695842241,-151.0,0.00021207,2]
[385234411,1757695842250,-151.0,0.00021207,2]
[385234412,1757695842259,-210.391168,0.00021207,2]
[385234413,1757695842269,-155.904354,0.00021207,2]
[385234414,1757695842279,-151.0,0.00021207,2]
[385234415,1757695842289,-1000.0,0.00021488,2]
[385234416,1757695842299,-1000.0,0.00021488,2]
[385234417,1757695842308,-1000.0,0.00021488,2]
[385234418,1757695842318,-1000.0,0.00021488,2]
[385234419,1757695842327,-1000.0,0.00021488,2]
[385234420,1757695842337,-247.99452224,0.00021533,2]
[385234421,1757695842347,-1000.0,0.00021533,2]
[385234422,1757695842357,-1000.0,0.00021533,2]
[385234423,1757695842366,-500.0,0.00021533,2]
[385234424,1757695842376,-500.0,0.00021533,2]
[385234425,1757695842385,-500.0,0.00021533,2]
[385234426,1757695842394,-9842.17698706,0.00021623,2]
[385234427,1757695842404,-203.616579,0.00021623,2]
[385234428,1757695842413,-203.616579,0.00021623,2]
[385234429,1757695842424,-203.616579,0.00021623,2]
[385234430,1757695842433,-203.616579,0.00021623,2]
[385234431,1757695842443,-741.99850721,0.00021688,2]
[385234432,1757695842457,-2965.02603481,0.00021688,2]
[385234433,1757695842466,-597.39155153,0.00021688,2]
[385234434,1757695842475,-2387.17663991,0.00021688,2]
[385234435,1757695842484,-869.23184354,0.00021688,2]
[385234436,1757695842493,-3473.45044679,0.00021688,2]
[385234437,1757695842503,-479.47758452,0.00021688,2]
[385234438,1757695842512,-582.14900259,0.00021688,2]
[385234439,1757695842521,-2328.59601037,0.00021688,2]
[385234440,1757695842530,-151.0,0.00021688,2]
[385234441,1757695842539,-298.754904,0.00021688,2]
[385234442,1757695842549,-298.754904,0.00021688,2]
[385234443,1757695842558,-298.754904,0.00021688,2]
[385234444,1757695842567,-298.754904,0.00021688,2]
[385234445,1757695842576,-151.0,0.00021688,2]
[385234446,1757695842585,-419.14987,0.00021688,2]
[385234447,1757695842594,-419.14987,0.00021688,2]
[385234448,1757695842603,-419.14987,0.00021688,2]
[385234449,1757695842612,-419.14987,0.00021688,2]
[385234450,1757695842621,-1915.99242773,0.00021688,2]
[385234451,1757695842630,-735.12024756,0.00021688,2]
[385234452,1757695842639,-151.0,0.00021688,2]
[385234453,1757695842649,-278.673816,0.00021688,2]
[385234454,1757695842658,-271.50955,0.00021688,2]
[385234455,1757695842667,-271.50955,0.00021688,2]
[385234456,1757695842677,-271.50955,0.00021688,2]
[385234457,1757695842686,-271.50955,0.00021688,2]
[385234458,1757695842695,-151.908738,0.00021688,2]
[385234459,1757695842704,-151.908738,0.00021688,2]
[385234460,1757695842713,-151.908738,0.00021688,2]
[385234461,1757695842722,-506.727001,0.00021688,2]
[385234462,1757695842731,-151.908738,0.00021688,2]
[385234463,1757695842740,-506.727001,0.00021688,2]
[385234464,1757695842749,-506.727001,0.00021688,2]
[385234465,1757695842759,-506.727001,0.00021688,2]
[385234466,1757695842768,-151.0,0.00021688,2]
[385234467,1757695842777,-245.435359,0.00021688,2]
[385234468,1757695842786,-1305.703639,0.00021688,2]
[385234469,1757695842795,-444.75547942,0.00021688,2]
[385234490,1757695844880,-420.73348553,0.00021688,2]
[385234491,1757695844892,-440.21467405,0.00021688,2]
[385234493,1757695844901,-1305.703639,0.00021688,2]
[385234494,1757695844911,-1305.703639,0.00021688,2]
[385234495,1757695844920,-152.074427,0.00021688,2]
[385234496,1757695844931,-152.074427,0.00021688,2]
[385234497,1757695844940,-152.074427,0.00021688,2]
[385234498,1757695844949,-152.074427,0.00021688,2]
[385234500,1757695844958,-5234.10168232,0.00021688,2]
[385234502,1757695844967,-151.0,0.00021688,2]
[385234504,1757695844977,-544.635932,0.00021688,2]
[385234506,1757695844986,-544.635932,0.00021688,2]
[385234508,1757695844995,-544.635932,0.00021688,2]
[385234509,1757695845005,-544.635932,0.00021688,2]
[385234511,1757695845015,-151.0,0.00021688,2]
[385234513,1757695845025,-151.0,0.00021688,2]
[385234515,1757695845034,-1084.57743047,0.000217,2]
[385234517,1757695845050,-328.95128276,0.000217,2]
[385234518,1757695845061,-119.01776801,0.000217,2]
[385234520,1757695845070,-203.616579,0.000217,2]
[385234521,1757695845080,-203.616579,0.000217,2]
[385234522,1757695845091,-203.616579,0.000217,2]
[385234523,1757695845100,-203.616574,0.000217,2]
[385234524,1757695845110,-87.0751687,0.00021723,2]
[385234547,1757695846485,-445.20080528,0.00021723,2]
[385234549,1757695846494,-5402.55309402,0.00021723,2]
[385234590,1757696044386,500.0,0.000239,120]
[385234591,1757696045481,219.43,0.000239,120]
[385234598,1757696534333,505.0,0.00022094,120]
[385234599,1757696535995,505.0,0.00023198,120]
[385234600,1757696537588,505.0,0.00024358,120]
[385234601,1757696538850,505.0,0.00025576,120]
[385234602,1757696540561,505.0,0.00026855,120]
[385234611,1757696730278,480.0,0.000151,7]
[385234636,1757697032538,-531.01285871,0.00013699,2]
[385234643,1757697032593,-87.83712029,0.00013699,2]
[385234645,1757697032602,-265.6294684,0.00019618,2]
[385234647,1757697032612,-160.0,0.00019706,2]
[385234649,1757697032622,-580.0,0.00019899,2]
[385234651,1757697032631,-7147.82354385,0.000199,2]
[385234653,1757697032641,-197.504718,0.00020004,2]
[385234655,1757697032650,-618.849979,0.00020187,2]
[385234657,1757697032661,-233.13074058,0.00020652,2]
[385234659,1757697032670,-160.0,0.00020652,2]
[385234661,1757697032680,-217.7145751,0.00020652,2]
[385234663,1757697032689,-160.0,0.00020652,2]
[385234665,1757697032699,-847.0429734,0.00020652,2]
[385234667,1757697032709,-265.62946839,0.00020659,2]
[385234669,1757697032718,-7147.82354383,0.00021149,2]
[385234671,1757697032727,-1162.50352275,0.00021214,2]
[385234673,1757697032736,-500.0,0.00021311,2]
[385234675,1757697032746,-617.1845406,0.00021311,2]
[385234676,1757697032756,-500.0,0.00021311,2]
[385234693,1757697032903,-500.0,0.00021311,2]
[385234695,1757697032913,-500.0,0.00021311,2]
[385234697,1757697032923,-453.0,0.00021311,2]
[385234699,1757697032932,-500.0,0.00021311,2]
[385234701,1757697032941,-500.0,0.00021311,2]
[385234703,1757697032950,-500.0,0.00021311,2]
[385234705,1757697032959,-369.46237231,0.00021311,2]
[385234707,1757697032969,-255.21477526,0.00021311,2]
[385234709,1757697032979,-500.0,0.00021311,2]
[385234711,1757697032988,-500.0,0.00021311,2]
[385234713,1757697032997,-500.0,0.00021311,2]
[385234715,1757697033007,-500.0,0.00021311,2]
[385234717,1757697033016,-500.0,0.00021311,2]
[385234719,1757697033026,-500.0,0.00021311,2]
[385234721,1757697033036,-500.0,0.00021311,2]
[385234723,1757697033048,-500.0,0.00021311,2]
[385234725,1757697033061,-300.0,0.00021321,20]
[385234727,1757697033071,-300.0,0.00021321,20]
[385234729,1757697033081,-300.0,0.00021321,20]
[385234731,1757697033091,-300.0,0.00021321,20]
[385234733,1757697033100,-300.0,0.00021321,20]
[385234735,1757697033110,-300.0,0.00021321,20]
[385234738,1757697033121,-300.0,0.00021321,20]
[385234740,1757697033131,-300.0,0.00021321,20]
[385234742,1757697033140,-300.0,0.00021321,20]
[385234744,1757697033151,-300.0,0.00021321,20]
[385234746,1757697033161,-300.0,0.00021321,20]
[385234748,1757697033171,-300.0,0.00021321,20]
[385234750,1757697033181,-300.0,0.00021321,20]
[385234752,1757697033190,-300.0,0.00021321,20]
[385234754,1757697033200,-300.0,0.00021321,20]
[385234756,1757697033209,-600.0,0.00021409,20]
[385234758,1757697033219,-407.83094646,0.00021596,2]
[385234760,1757697033229,-353.49,0.00021645,2]
[385234762,1757697033238,-407.83094645,0.00021648,2]
[385234763,1757697033247,-151.0,0.00021683,2]
[385234764,1757697033257,-151.0,0.00021683,2]
[385234766,1757697033267,-151.0,0.00021683,2]
[385234767,1757697033277,-245.31765688,0.00021683,2]
[385234768,1757697033287,-417.15472785,0.00021686,10]
[385234769,1757697033297,-160.0,0.00021686,10]
[385234770,1757697033307,-427.06459544,0.00021689,2]
[385234771,1757697033317,-13590.81885877,0.0002169,2]
[385234772,1757697033339,-500.0,0.00021311,2]
[385234773,1757697033348,-500.0,0.00021311,2]
[385234774,1757697033358,-19679.76664367,0.0002169,2]
[385234852,1757697040492,-454.06642581,0.00021311,2]
[385234854,1757697040502,-500.0,0.00021311,2]
[385234856,1757697040511,-202.62272142,0.00021311,2]
[385234858,1757697040521,-500.0,0.00021311,2]
[385234860,1757697040530,-500.0,0.00021311,2]
[385234862,1757697040539,-500.0,0.00021311,2]
[385234864,1757697040549,-228.43118156,0.00021311,2]
[385234866,1757697040560,-271.56881844,0.00021311,2]
[385234868,1757697040569,-219.88830355,0.00021683,2]
[385234870,1757697040579,-1104.34287801,0.0002169,2]
[385234873,1757697040589,-2642.28626944,0.0002169,2]
[385234875,1757697040604,-1176.73912595,0.0002169,2]
[385234877,1757697040615,-876.27195096,0.0002169,2]
[385235031,1757697044639,-2646.08079085,0.0002169,2]
[385235033,1757697044649,-73.21406259,0.00021696,2]
[385235035,1757697044659,-19426.13140811,0.00021696,2]
[385235037,1757697044668,-14556.10518161,0.00021696,2]
[385235038,1757697044680,-324.675924,0.00021696,2]
[385235042,1757697044702,-2428.47673001,0.00021696,2]
[385235094,1757697046524,-8276.41943018,0.00021696,2]
[385235095,1757697046534,-151.0,0.00021696,2]
[385235096,1757697046543,-151.0,0.00021696,2]
[385235097,1757697046552,-151.0,0.00021696,2]
[385235098,1757697046561,-151.0,0.00021696,2]
[385235099,1757697046570,-191.196916,0.00021696,2]
[385235100,1757697046579,-205.932548,0.00021696,2]
[385235101,1757697046588,-151.0,0.00021696,2]
[385235102,1757697046598,-151.0,0.00021696,2]
[385235103,1757697046607,-151.0,0.00021696,2]
[385235104,1757697046615,-151.0,0.00021696,2]
[385235105,1757697046623,-151.0,0.00021696,2]
[385235106,1757697046631,-151.789915,0.00021696,2]
[385235107,1757697046641,-151.0,0.00021696,2]
[385235108,1757697046650,-151.0,0.00021696,2]
[385235109,1757697046659,-151.0,0.00021696,2]
[385235110,1757697046669,-151.0,0.00021696,2]
[385235111,1757697046678,-151.0,0.00021696,2]
[385235112,1757697046687,-151.0,0.00021696,2]
[385235113,1757697046696,-151.0,0.00021696,2]
[385235114,1757697046706,-151.0,0.00021696,2]
[385235115,1757697046716,-151.0,0.00021696,2]
[385235116,1757697046725,-151.0,0.00021696,2]
[385235117,1757697046735,-224.064088,0.00021696,2]
[385235119,1757697046745,-224.064088,0.00021696,2]
[385235120,1757697046754,-224.064088,0.00021696,2]
[385235121,1757697046888,-224.064088,0.00021696,2]
[385235122,1757697046898,-151.0,0.00021696,2]
[385235123,1757697046909,-151.0,0.00021696,2]
[385235124,1757697046918,-151.0,0.00021696,2]
[385235125,1757697046928,-225.731074,0.00021696,2]
[385235126,1757697046937,-225.731074,0.00021696,2]
[385235127,1757697046947,-225.731074,0.00021696,2]
[385235128,1757697046956,-225.731074,0.00021696,2]
[385235129,1757697046965,-151.0,0.00021696,2]
[385235130,1757697046974,-151.0,0.00021696,2]
[385235131,1757697046983,-151.0,0.00021696,2]
[385235132,1757697046993,-179.252943,0.00021696,2]
[385235133,1757697047003,-179.252943,0.00021696,2]
[385235134,1757697047012,-179.252943,0.00021696,2]
[385235135,1757697047022,-179.252943,0.00021696,2]
[385235136,1757697047031,-6460.750402,0.00021696,2]
[385235137,1757697047041,-151.0,0.00021696,2]
[385235138,1757697047050,-151.0,0.00021696,2]
[385235139,1757697047060,-151.0,0.00021696,2]
[385235140,1757697047069,-151.0,0.00021696,2]
[385235141,1757697047079,-251.489922,0.00021696,2]
[385235142,1757697047089,-251.489922,0.00021696,2]
[385235143,1757697047099,-251.489922,0.00021696,2]
[385235144,1757697047108,-251.489922,0.00021696,2]
[385235145,1757697047119,-151.0,0.00021696,2]
[385235146,1757697047128,-151.0,0.00021696,2]
[385235147,1757697047137,-151.0,0.00021696,2]
[385235148,1757697047147,-151.0,0.00021696,2]
[385235149,1757697047156,-151.0,0.00021696,2]
[385235150,1757697047166,-155.853016,0.00021696,2]
[385235151,1757697047175,-151.0,0.00021696,2]
[385235152,1757697047184,-259.694026,0.00021696,2]
[385235153,1757697047194,-151.0,0.00021696,2]
[385235154,1757697047204,-151.0,0.00021696,2]
[385235155,1757697047214,-151.0,0.00021696,2]
[385235156,1757697047223,-151.0,0.00021696,2]
[385235157,1757697047232,-161.891825,0.00021696,2]
[385235158,1757697047242,-161.891825,0.00021696,2]
[385235159,1757697047251,-161.891825,0.00021696,2]
[385235160,1757697047261,-161.891825,0.00021696,2]
[385235161,1757697047270,-576.478013,0.00021696,2]
[385235162,1757697047279,-205.49271798,0.00021696,2]
[385235163,1757697047299,-370.98529502,0.00021696,2]
[385235164,1757697047309,-151.0,0.00021696,2]
[385235165,1757697047319,-576.478013,0.00021696,2]
[385235166,1757697047328,-151.0,0.00021696,2]
[385235167,1757697047337,-151.0,0.00021696,2]
[385235168,1757697047346,-576.478013,0.00021696,2]
[385235169,1757697047355,-151.0,0.00021696,2]
[385235170,1757697047364,-151.0,0.00021696,2]
[385235171,1757697047373,-151.0,0.00021696,2]
[385235172,1757697047383,-151.0,0.00021696,2]
[385235173,1757697047392,-151.0,0.00021696,2]
[385235174,1757697047401,-151.0,0.00021696,2]
[385235175,1757697047410,-151.0,0.00021696,2]
[385235176,1757697047419,-151.0,0.00021696,2]
[385235177,1757697047429,-682.159296,0.00021696,2]
[385235178,1757697047438,-151.0,0.00021696,2]
[385235179,1757697047447,-550.39938297,0.00021696,2]
[385235183,1757697386454,800.0,0.0002739,120]
[385235184,1757697404409,800.0,0.0002739,120]
[385235186,1757697507421,400.0,0.0002739,120]
[385235198,1757697961308,-556.964981,0.00013699,2]
[385235271,1757698232685,-303.15156366,0.000189,2]
[385235273,1757698232694,-265.62946839,0.00018989,2]
[385235275,1757698232703,-303.15156366,0.00019089,2]
[385235277,1757698232712,-2890.37633019,0.00019137,2]
[385235279,1757698232724,-2501.56707658,0.00019137,2]
[385235281,1757698232735,-758.75103823,0.00019137,2]
[385235284,1757698232754,-1867.27220524,0.00019137,2]
[385235337,1757698236659,1114.0,0.00028933,60]
[385235352,1757698238676,-2567.44887711,0.00019137,2]
[385235353,1757698238686,-300.0,0.00019277,2]
[385235354,1757698238695,-303.15156366,0.00019278,2]
[385235356,1757698238705,-303.15156366,0.00019467,2]
[385235357,1757698238715,-303.15156366,0.00019656,2]
[385235358,1757698238724,-454.72734548,0.00019845,4]
[385235359,1757698238733,-6673.69819983,0.000199,2]
[385235360,1757698238743,-454.72734548,0.00020034,4]
[385235361,1757698238752,-556.964981,0.00020187,2]
[385235362,1757698238762,-41441.43262083,0.0002019,2]
[385235363,1757698238775,-7571.19089288,0.0002019,2]
[385235364,1757698238790,-438.64173052,0.00020223,4]
[385235365,1757698238800,-197.504718,0.000205,2]
[385235366,1757698238809,-401.72825269,0.00020999,2]
[385235367,1757698238818,-10643.01344359,0.00021,2]
[385235368,1757698238830,-1063.96716672,0.00021,2]
[385235403,1757698240734,-7798.54924099,0.00021,2]
[385235621,1757698243734,-401.997424,0.00020189,2]
[385235622,1757698243746,-231.62732283,0.00020189,2]
[385235623,1757698243755,-500.0,0.00020189,2]
[385235624,1757698243765,-86.37267717,0.00020189,2]
[385235691,1757698246741,-519.63470347,0.00020189,2]
[385235693,1757698246751,-5494.4701487,0.00021,2]
[385235694,1757698246761,-3384.50869249,0.00021139,10]
[385235698,1757698246905,-1157.4999995,0.00021139,10]
[385235720,1757698845170,175.54,0.00028935,60]
[385235722,1757698905871,501.268482,0.00013699,2]
[385235901,1757699437878,-265.62946839,0.00019886,2]
[385235903,1757699437888,-6459.98979966,0.000199,2]
[385235905,1757699437897,-501.268482,0.00020187,2]
[385235907,1757699437907,-300.0,0.0002031,2]
[385235909,1757699437916,-1763.2500938,0.00020311,2]
[385235910,1757699437925,-3649.8983364,0.00020311,2]
[385235912,1757699437935,-197.504718,0.00020351,2]
[385235914,1757699437945,-233.13074058,0.00021127,2]
[385235916,1757699437955,-160.0,0.00021127,2]
[385235918,1757699437964,-217.7145751,0.00021127,2]
[385235920,1757699437975,-160.0,0.00021127,2]
[385235922,1757699437984,-847.0429734,0.00021127,2]
[385235924,1757699437993,-1305.0,0.00021139,2]
[385235926,1757699438004,-1305.0,0.00021139,2]
[385235928,1757699438014,-1305.0,0.00021139,2]
[385235930,1757699438023,-156.15939956,0.00021139,2]
[385235932,1757699438032,-328.0,0.00021139,2]
[385235934,1757699438042,-500.0,0.00021147,2]
[385235936,1757699438051,-500.0,0.00021147,2]
[385235938,1757699438061,-528.49738932,0.00021147,2]
[385235940,1757699438071,-13.49458728,0.00021147,2]
[385235942,1757699438083,-486.50541272,0.00021147,2]
[385235944,1757699438092,-500.0,0.00021147,2]
[385235946,1757699438101,-91.34351508,0.00021147,2]
[385235950,1757699438128,-408.65648492,0.00021147,2]
[385235952,1757699438139,-500.0,0.00021147,2]
[385235954,1757699438148,-432.15836344,0.00021147,2]
[385235956,1757699438157,-500.0,0.00021147,2]
[385235958,1757699438167,-137.81479179,0.00021149,2]
[385235972,1757699438300,-284.49274835,0.00021149,2]
[385235974,1757699438312,-276.71546255,0.00021149,2]
[385235977,1757699438323,-279.4386551,0.00021149,2]
[385235994,1757699438488,-359.1962722,0.00021149,2]
[385236145,1757699440051,-1834.3094557,0.00021149,2]
[385236152,1757699440106,-3288.02241369,0.00021149,2]
[385236154,1757699440117,-4180.7174924,0.0002144,2]
[385236156,1757699440126,-3929.26009391,0.0002144,2]
[385236509,1757699443678,-500.0,0.00021147,2]
[385236511,1757699443688,-500.0,0.00021147,2]
[385236513,1757699443698,-261.1298476,0.00021147,2]
[385236515,1757699443707,-500.0,0.00021147,2]
[385236517,1757699443717,-500.0,0.00021147,2]
[385236519,1757699443726,-500.0,0.00021147,2]
[385236521,1757699443735,-500.0,0.00021147,2]
[385236523,1757699443744,-1556.38498389,0.0002144,2]
[385236525,1757699443753,-7450.30485438,0.000215,2]
[385236757,1757699445962,-3261.1298476,0.00020936,2]
[385236759,1757699445972,-169.6502318,0.00021147,2]
[385236761,1757699445982,-171.69348,0.00021168,3]
[385236763,1757699445992,-11170.84975797,0.000215,2]
[385236765,1757699446001,-277.4863133,0.000215,2]
[385236767,1757699446010,-490.63,0.0002159,3]
[385236769,1757699446019,-245.31,0.0002159,3]
[385236771,1757699446028,-735.98,0.0002159,3]
[385236773,1757699446038,-187.19,0.0002159,3]
[385236775,1757699446047,-561.6,0.0002159,3]
[385236777,1757699446056,-394.32,0.0002159,3]
[385236779,1757699446067,-197.16,0.0002159,3]
[385236781,1757699446076,-188.85,0.0002159,3]
[385236783,1757699446087,-232.35,0.0002159,3]
[385236785,1757699446096,-211.95,0.0002159,3]
[385236787,1757699446106,-3854.67,0.0002159,10]
[385236789,1757699446116,-635.89,0.0002159,3]
[385236791,1757699446126,-3212.23,0.0002159,10]
[385236792,1757699446135,-2676.86,0.0002159,10]
[385236795,1757699446145,-281.20977689,0.00021599,2]
[385236797,1757699446154,-266.13798699,0.000216,2]
[385236799,1757699446163,-18732.60162829,0.000216,3]
[385236801,1757699446175,-1291.23276847,0.000216,3]
[385236803,1757699446186,-306.27569998,0.000216,3]
[385236807,1757699446204,-1101.14881583,0.000216,3]
[385236809,1757699446217,-71361.40264333,0.000216,3]
[385236811,1757699446226,-151.734799,0.000216,2]
[385236813,1757699446235,-179.251271,0.000216,2]
[385236815,1757699446245,-179.251271,0.000216,2]
[385236817,1757699446254,-179.251271,0.000216,2]
[385236819,1757699446263,-151.0,0.000216,2]
[385236821,1757699446272,-179.251271,0.000216,2]
[385236823,1757699446281,-151.0,0.000216,2]
[385236825,1757699446290,-180.584859,0.000216,2]
[385236827,1757699446299,-180.584859,0.000216,2]
[385236829,1757699446308,-180.584859,0.000216,2]
[385236831,1757699446317,-180.584859,0.000216,2]
[385236834,1757699446329,-500.0,0.000216,3]
[385236835,1757699446338,-151.0,0.000216,2]
[385236837,1757699446347,-151.0,0.000216,2]
[385236840,1757699446356,-151.0,0.000216,2]
[385236841,1757699446365,-151.0,0.000216,2]
[385236843,1757699446375,-151.0,0.000216,2]
[385236846,1757699446384,-151.0,0.000216,2]
[385236848,1757699446393,-151.0,0.000216,2]
[385236850,1757699446403,-151.0,0.000216,2]
[385236852,1757699446412,-461.18241,0.000216,2]
[385236853,1757699446422,-461.18241,0.000216,2]
[385236856,1757699446431,-461.18241,0.000216,2]
[385236858,1757699446440,-151.0,0.000216,2]
[385236860,1757699446450,-461.18241,0.000216,2]
[385236862,1757699446459,-151.0,0.000216,2]
[385236863,1757699446468,-151.0,0.000216,2]
[385236865,1757699446478,-151.0,0.000216,2]
[385236868,1757699446488,-151.0,0.000216,2]
[385236870,1757699446499,-151.0,0.000216,2]
[385236872,1757699446509,-328.0,0.00021642,2]
[385236873,1757699446519,-365.53328683,0.00021642,2]
[385236875,1757699446528,-500.0,0.00021773,2]
[385236878,1757699446539,-500.0,0.00021773,2]
[385236880,1757699446551,-500.0,0.00021773,2]
[385236882,1757699446561,-500.0,0.00021773,2]
[385236884,1757699446570,-208.02846301,0.00021787,2]
[385236886,1757699446581,-168.38880561,0.00021787,2]
[385236888,1757699446592,-217.68,0.0002179,3]
[385236890,1757699446601,-155.0,0.00021799,2]
[385236892,1757699446611,-200.0,0.00021799,2]
[385236894,1757699446620,-253.64820505,0.00021799,5]
[385236896,1757699446630,-13011.86208157,0.000218,2]
[385236898,1757699446639,-151.0,0.000218,2]